[Event "Early-Titled-Tuesday-Blitz-March-05-2024"]
[Site "Chess.com"]
[Date "2024.03.05"]
[Round "2"]
[White "C_K_G"]
[Black "cristianserban1"]
[Result "0-1"]
[WhiteElo "2171"]
[BlackElo "2463"]
[TimeControl "180+1"]
[EndTime "8:18:14 PST"]
[Termination "cristianserban1 won on time"]

1. e4 {[%clk 0:03:00.9]} 1... c6 {[%clk 0:02:58.3]} 2. Nf3 {[%clk 0:02:59.6]}
2... d5 {[%clk 0:02:58.6]} 3. Nc3 {[%clk 0:02:59.9]} 3... g6 {[%clk 0:02:57.4]}
4. d4 {[%clk 0:02:59.2]} 4... dxe4 {[%clk 0:02:55.1]} 5. Nxe4 {[%clk 0:02:59]}
5... Bg7 {[%clk 0:02:56]} 6. c4 {[%clk 0:02:52.5]} 6... Nf6 {[%clk 0:02:56.2]}
7. Nxf6+ {[%clk 0:02:49.1]} 7... exf6 {[%clk 0:02:57.1]} 8. h3 {[%clk
0:02:47.1]} 8... O-O {[%clk 0:02:57.1]} 9. Be2 {[%clk 0:02:45.6]} 9... b5 {[%clk
0:02:47.9]} 10. cxb5 {[%clk 0:02:39.1]} 10... cxb5 {[%clk 0:02:48.1]} 11. O-O
{[%clk 0:02:39.1]} 11... a6 {[%clk 0:02:45.3]} 12. Bd2 {[%clk 0:02:32.1]} 12...
Bb7 {[%clk 0:02:42.7]} 13. Bc3 {[%clk 0:02:32]} 13... Nd7 {[%clk 0:02:41.4]} 14.
a4 {[%clk 0:02:29.4]} 14... bxa4 {[%clk 0:02:41.5]} 15. Rxa4 {[%clk 0:02:28.9]}
15... Nb6 {[%clk 0:02:39.4]} 16. Ba5 {[%clk 0:02:26.5]} 16... Rb8 {[%clk
0:02:06.1]} 17. Rb4 {[%clk 0:02:21.4]} 17... Bxf3 {[%clk 0:02:06.1]} 18. Bxf3
{[%clk 0:02:17.9]} 18... Qd6 {[%clk 0:02:06.7]} 19. Qb3 {[%clk 0:01:50.9]} 19...
Nd7 {[%clk 0:02:05]} 20. Rb7 {[%clk 0:01:31.7]} 20... Rxb7 {[%clk 0:01:53.9]}
21. Qxb7 {[%clk 0:01:29.8]} 21... Rb8 {[%clk 0:01:53.4]} 22. Qa7 {[%clk
0:01:29.5]} 22... Rxb2 {[%clk 0:01:48.8]} 23. Bc7 {[%clk 0:01:21.2]} 23... Qa3
{[%clk 0:01:08.5]} 24. Bf4 {[%clk 0:01:04.8]} 24... Qa4 {[%clk 0:00:54.7]} 25.
Re1 {[%clk 0:00:49.5]} 25... Bf8 {[%clk 0:00:51.1]} 26. Re8 {[%clk 0:00:47.2]}
26... Kg7 {[%clk 0:00:51]} 27. Qa8 {[%clk 0:00:41.9]} 27... Qxd4 {[%clk
0:00:34.2]} 28. Be3 {[%clk 0:00:23.2]} 28... Rb1+ {[%clk 0:00:34.2]} 29. Kh2
{[%clk 0:00:20.8]} 29... Qd6+ {[%clk 0:00:34.8]} 30. g3 {[%clk 0:00:21.2]} 30...
Rb8 {[%clk 0:00:35.7]} 31. Qa7 {[%clk 0:00:15.5]} 31... Rxe8 {[%clk 0:00:35]}
32. Bf4 {[%clk 0:00:13.3]} 32... Qe6 {[%clk 0:00:34.5]} 33. Bg4 {[%clk
0:00:08.2]} 33... f5 {[%clk 0:00:34.9]} 34. Bf3 {[%clk 0:00:05.2]} 34... Bc5
{[%clk 0:00:34.6]} 35. Qc7 {[%clk 0:00:03.3]} 35... Bxf2 {[%clk 0:00:34.5]} 36.
Qc3+ {[%clk 0:00:01.4]} 36... Nf6 {[%clk 0:00:35]} 0-1

[Event "Early-Titled-Tuesday-Blitz-March-05-2024"]
[Site "Chess.com"]
[Date "2024.03.05"]
[Round "2"]
[White "Kolle05"]
[Black "TigrVShlyape"]
[Result "1/2-1/2"]
[WhiteElo "2586"]
[BlackElo "2870"]
[TimeControl "180+1"]
[EndTime "8:18:15 PST"]
[Termination "Game drawn by repetition"]

1. e4 {[%clk 0:03:00.9]} 1... c5 {[%clk 0:02:59.4]} 2. Nf3 {[%clk 0:03:01.1]}
2... e6 {[%clk 0:02:58.5]} 3. d4 {[%clk 0:03:00.1]} 3... cxd4 {[%clk 0:02:57.1]}
4. Nxd4 {[%clk 0:03:01]} 4... a6 {[%clk 0:02:57.2]} 5. c4 {[%clk 0:03:00.7]}
5... Nf6 {[%clk 0:02:55.5]} 6. Nc3 {[%clk 0:03:00.4]} 6... Qc7 {[%clk
0:02:55.8]} 7. Be2 {[%clk 0:02:59.6]} 7... Bb4 {[%clk 0:02:53.4]} 8. Qd3 {[%clk
0:02:49.3]} 8... Nc6 {[%clk 0:02:50.6]} 9. Nxc6 {[%clk 0:02:44.8]} 9... dxc6
{[%clk 0:02:48.8]} 10. O-O {[%clk 0:02:42.8]} 10... e5 {[%clk 0:02:45.9]} 11. a3
{[%clk 0:02:38]} 11... Bc5 {[%clk 0:02:40.1]} 12. b4 {[%clk 0:02:20]} 12... Bd4
{[%clk 0:02:39.6]} 13. Be3 {[%clk 0:02:10.7]} 13... Bxe3 {[%clk 0:02:11.9]} 14.
Qxe3 {[%clk 0:02:09.2]} 14... O-O {[%clk 0:02:12.5]} 15. Rfd1 {[%clk 0:01:47.3]}
15... Be6 {[%clk 0:02:11.8]} 16. f3 {[%clk 0:01:45.7]} 16... Rfd8 {[%clk
0:02:09.3]} 17. Na4 {[%clk 0:01:45.1]} 17... Nd7 {[%clk 0:01:59.5]} 18. Rd2
{[%clk 0:01:27.7]} 18... b5 {[%clk 0:01:50]} 19. Nb2 {[%clk 0:00:57]} 19... Nb6
{[%clk 0:01:26.3]} 20. Rad1 {[%clk 0:00:50.5]} 20... Rxd2 {[%clk 0:01:25.1]} 21.
Rxd2 {[%clk 0:00:49.7]} 21... bxc4 {[%clk 0:01:19.9]} 22. Qc5 {[%clk 0:00:48.9]}
22... a5 {[%clk 0:01:16.9]} 23. Nxc4 {[%clk 0:00:43.4]} 23... Bxc4 {[%clk
0:01:11.4]} 24. Bxc4 {[%clk 0:00:44.3]} 24... axb4 {[%clk 0:01:09.6]} 25. axb4
{[%clk 0:00:45.2]} 25... Nxc4 {[%clk 0:01:06.8]} 26. Qxc4 {[%clk 0:00:46.1]}
26... g6 {[%clk 0:01:02.8]} 27. Qc5 {[%clk 0:00:42.2]} 27... Kg7 {[%clk
0:00:50.5]} 28. Rc2 {[%clk 0:00:37.3]} 28... Ra1+ {[%clk 0:00:46.1]} 29. Kf2
{[%clk 0:00:36.7]} 29... Qb8 {[%clk 0:00:42.6]} 30. Rc4 {[%clk 0:00:26.7]} 30...
Rb1 {[%clk 0:00:37.4]} 31. h4 {[%clk 0:00:22.1]} 31... Qb5 {[%clk 0:00:34.8]}
32. Qxc6 {[%clk 0:00:17.5]} 32... Qxc6 {[%clk 0:00:33.2]} 33. Rxc6 {[%clk
0:00:18.4]} 33... Rxb4 {[%clk 0:00:33.2]} 34. Rc5 {[%clk 0:00:18.7]} 34... Kf6
{[%clk 0:00:32.4]} 35. Rc6+ {[%clk 0:00:18.7]} 35... Ke7 {[%clk 0:00:32.7]} 36.
Rc5 {[%clk 0:00:19]} 36... Kd6 {[%clk 0:00:32.7]} 37. Ra5 {[%clk 0:00:19.6]}
37... Rb2+ {[%clk 0:00:32.3]} 38. Kg3 {[%clk 0:00:19.5]} 38... h5 {[%clk
0:00:32.7]} 39. Ra7 {[%clk 0:00:19.3]} 39... Ke6 {[%clk 0:00:32.8]} 40. Ra6+
{[%clk 0:00:19.5]} 40... Ke7 {[%clk 0:00:33.1]} 41. Ra7+ {[%clk 0:00:20.1]}
41... Ke6 {[%clk 0:00:32.7]} 42. Ra6+ {[%clk 0:00:20.6]} 42... Ke7 {[%clk
0:00:32.4]} 43. Ra7+ {[%clk 0:00:21.2]} 43... Kf6 {[%clk 0:00:32]} 44. Ra6+
{[%clk 0:00:21.6]} 44... Kg7 {[%clk 0:00:29.7]} 45. Ra5 {[%clk 0:00:22.1]} 45...
Kf6 {[%clk 0:00:27.6]} 46. Ra6+ {[%clk 0:00:22.1]} 46... Kg7 {[%clk 0:00:27.3]}
47. Ra5 {[%clk 0:00:22.1]} 47... Kf6 {[%clk 0:00:26]} 48. Ra6+ {[%clk
0:00:22.3]} 1/2-1/2

[Event "Early-Titled-Tuesday-Blitz-March-05-2024"]
[Site "Chess.com"]
[Date "2024.03.05"]
[Round "2"]
[White "rdarruda"]
[Black "GianmarcoVaR"]
[Result "0-1"]
[WhiteElo "2527"]
[BlackElo "2752"]
[TimeControl "180+1"]
[EndTime "8:18:15 PST"]
[Termination "GianmarcoVaR won by resignation"]

1. d4 {[%clk 0:02:52.3]} 1... Nf6 {[%clk 0:02:54.5]} 2. Nf3 {[%clk 0:02:51.5]}
2... g6 {[%clk 0:02:52.4]} 3. Nc3 {[%clk 0:02:51.4]} 3... Bg7 {[%clk 0:02:52.9]}
4. e4 {[%clk 0:02:51.4]} 4... d6 {[%clk 0:02:51]} 5. Bg5 {[%clk 0:02:51.3]} 5...
Bg4 {[%clk 0:02:50.4]} 6. Be2 {[%clk 0:02:50.8]} 6... Nc6 {[%clk 0:02:49.8]} 7.
d5 {[%clk 0:02:49.6]} 7... Bxf3 {[%clk 0:02:37.8]} 8. Bxf3 {[%clk 0:02:48.8]}
8... Ne5 {[%clk 0:02:38.5]} 9. Be2 {[%clk 0:02:48.9]} 9... h6 {[%clk 0:02:38.7]}
10. Bh4 {[%clk 0:02:48.2]} 10... g5 {[%clk 0:02:38.7]} 11. Bg3 {[%clk
0:02:48.4]} 11... Ng6 {[%clk 0:02:35.5]} 12. h4 {[%clk 0:02:40.9]} 12... c6
{[%clk 0:02:32.8]} 13. hxg5 {[%clk 0:02:40.2]} 13... hxg5 {[%clk 0:02:32.8]} 14.
Rxh8+ {[%clk 0:02:40]} 14... Bxh8 {[%clk 0:02:33.7]} 15. Qd2 {[%clk 0:02:38.7]}
15... Qb6 {[%clk 0:02:33.9]} 16. Rb1 {[%clk 0:02:29.4]} 16... cxd5 {[%clk
0:02:12.2]} 17. Nxd5 {[%clk 0:02:13.3]} 17... Nxd5 {[%clk 0:02:11.2]} 18. Qxd5
{[%clk 0:02:11.4]} 18... Be5 {[%clk 0:02:02.8]} 19. Bxe5 {[%clk 0:02:05.5]}
19... Nxe5 {[%clk 0:02:03.2]} 20. Qb5+ {[%clk 0:02:01.3]} 20... Qxb5 {[%clk
0:01:57.1]} 21. Bxb5+ {[%clk 0:02:02.2]} 21... Kf8 {[%clk 0:01:56]} 22. Ke2
{[%clk 0:02:01.3]} 22... Rc8 {[%clk 0:01:50.5]} 23. c3 {[%clk 0:02:00.7]} 23...
Kg7 {[%clk 0:01:28]} 24. Rh1 {[%clk 0:01:58.2]} 24... Rc5 {[%clk 0:01:15.6]} 25.
Ba4 {[%clk 0:01:55.7]} 25... b5 {[%clk 0:01:13.1]} 26. Bb3 {[%clk 0:01:54.2]}
26... a5 {[%clk 0:01:13.2]} 27. Rd1 {[%clk 0:01:45.1]} 27... a4 {[%clk
0:01:11.5]} 28. Bc2 {[%clk 0:01:45.1]} 28... a3 {[%clk 0:01:12.1]} 29. bxa3
{[%clk 0:01:30.8]} 29... Rxc3 {[%clk 0:01:12.3]} 30. Bb3 {[%clk 0:01:31.3]}
30... Rc5 {[%clk 0:00:47.8]} 31. a4 {[%clk 0:01:27.8]} 31... bxa4 {[%clk
0:00:46.1]} 32. Bxa4 {[%clk 0:01:28.7]} 32... Rc4 {[%clk 0:00:46.1]} 33. Bb3
{[%clk 0:01:24.6]} 33... Rxe4+ {[%clk 0:00:46.3]} 34. Kf1 {[%clk 0:01:25.3]}
34... Rh4 {[%clk 0:00:36.3]} 35. Ke2 {[%clk 0:01:20.9]} 35... Kf6 {[%clk
0:00:32.8]} 36. Rd5 {[%clk 0:01:13.5]} 36... Rb4 {[%clk 0:00:28.7]} 37. f3
{[%clk 0:01:10.2]} 37... g4 {[%clk 0:00:28.5]} 38. Rd1 {[%clk 0:01:02.3]} 38...
gxf3+ {[%clk 0:00:27.4]} 39. gxf3 {[%clk 0:01:03.2]} 39... Rh4 {[%clk
0:00:27.7]} 40. Ke3 {[%clk 0:00:59]} 40... Rh2 {[%clk 0:00:27.8]} 41. a4 {[%clk
0:00:50.4]} 41... Rb2 {[%clk 0:00:27.4]} 42. Bd5 {[%clk 0:00:43.1]} 42... e6
{[%clk 0:00:24.8]} 43. Ba8 {[%clk 0:00:42]} 43... d5 {[%clk 0:00:24]} 44. f4
{[%clk 0:00:38.2]} 44... Nc4+ {[%clk 0:00:19.1]} 45. Kd4 {[%clk 0:00:37.8]}
45... Nb6 {[%clk 0:00:19.1]} 46. Bc6 {[%clk 0:00:37.1]} 46... Nxa4 {[%clk
0:00:19.3]} 0-1

[Event "Early-Titled-Tuesday-Blitz-March-05-2024"]
[Site "Chess.com"]
[Date "2024.03.05"]
[Round "2"]
[White "Neijin"]
[Black "lagunanivaria"]
[Result "1-0"]
[WhiteElo "2711"]
[BlackElo "2450"]
[TimeControl "180+1"]
[EndTime "8:18:15 PST"]
[Termination "Neijin won by checkmate"]

1. e4 {[%clk 0:03:00.9]} 1... e5 {[%clk 0:02:58.9]} 2. Nf3 {[%clk 0:02:59.7]}
2... Nc6 {[%clk 0:02:59.3]} 3. Bc4 {[%clk 0:02:58.4]} 3... Nf6 {[%clk
0:02:59.1]} 4. d3 {[%clk 0:02:58.7]} 4... Be7 {[%clk 0:02:58.7]} 5. a4 {[%clk
0:02:56.9]} 5... O-O {[%clk 0:02:55.6]} 6. Nc3 {[%clk 0:02:57.2]} 6... h6 {[%clk
0:02:55.4]} 7. h3 {[%clk 0:02:53.5]} 7... Bc5 {[%clk 0:02:52.5]} 8. g4 {[%clk
0:02:52]} 8... Nh7 {[%clk 0:02:46.7]} 9. h4 {[%clk 0:02:48]} 9... d6 {[%clk
0:02:46.9]} 10. Rg1 {[%clk 0:02:43.1]} 10... Nd4 {[%clk 0:02:45]} 11. g5 {[%clk
0:02:38.1]} 11... hxg5 {[%clk 0:02:37.8]} 12. hxg5 {[%clk 0:02:20.3]} 12... g6
{[%clk 0:02:37.1]} 13. Nxd4 {[%clk 0:02:16.3]} 13... Bxd4 {[%clk 0:02:36.3]} 14.
Qf3 {[%clk 0:02:07.5]} 14... Be6 {[%clk 0:02:27.6]} 15. Nd5 {[%clk 0:02:01.1]}
15... Kg7 {[%clk 0:01:54.1]} 16. c3 {[%clk 0:01:56.2]} 16... Bb6 {[%clk
0:01:50.4]} 17. a5 {[%clk 0:01:53.2]} 17... Bc5 {[%clk 0:01:50.5]} 18. b4 {[%clk
0:01:52.7]} 18... b5 {[%clk 0:01:38.4]} 19. Ba2 {[%clk 0:01:47.9]} 19... f6
{[%clk 0:00:37.9]} 20. bxc5 {[%clk 0:01:39.2]} 20... fxg5 {[%clk 0:00:36.7]} 21.
Qg3 {[%clk 0:01:37.7]} 21... dxc5 {[%clk 0:00:31.4]} 22. Qxe5+ {[%clk
0:01:36.5]} 22... Nf6 {[%clk 0:00:19]} 23. Qxe6 {[%clk 0:01:15.8]} 23... Nxd5
{[%clk 0:00:16.5]} 24. Bxd5 {[%clk 0:00:48.3]} 24... c6 {[%clk 0:00:15.3]} 25.
Qe5+ {[%clk 0:00:43.6]} 25... Rf6 {[%clk 0:00:11.9]} 26. Bxg5 {[%clk 0:00:39.8]}
26... cxd5 {[%clk 0:00:12.2]} 27. Bxf6+ {[%clk 0:00:39.7]} 27... Qxf6 {[%clk
0:00:12.8]} 28. Qxf6+ {[%clk 0:00:36.8]} 28... Kxf6 {[%clk 0:00:13.3]} 29. exd5
{[%clk 0:00:37.1]} 29... Rd8 {[%clk 0:00:11.9]} 30. c4 {[%clk 0:00:37.2]} 30...
bxc4 {[%clk 0:00:11.2]} 31. dxc4 {[%clk 0:00:37.5]} 31... Rb8 {[%clk 0:00:12.1]}
32. Kd2 {[%clk 0:00:34.7]} 32... Rb2+ {[%clk 0:00:11.2]} 33. Kc3 {[%clk
0:00:35.2]} 33... Re2 {[%clk 0:00:11.2]} 34. Rad1 {[%clk 0:00:34.2]} 34... Ke5
{[%clk 0:00:10.6]} 35. d6 {[%clk 0:00:34.1]} 35... Rxf2 {[%clk 0:00:05.8]} 36.
d7 {[%clk 0:00:34.5]} 36... Rf3+ {[%clk 0:00:06.3]} 37. Rd3 {[%clk 0:00:34.4]}
37... Rf8 {[%clk 0:00:03.4]} 38. d8=Q {[%clk 0:00:34.4]} 38... Rxd8 {[%clk
0:00:04.3]} 39. Rxd8 {[%clk 0:00:34.5]} 39... Kf4 {[%clk 0:00:04.6]} 40. Rxg6
{[%clk 0:00:33.6]} 40... a6 {[%clk 0:00:05.5]} 41. Re6 {[%clk 0:00:33.8]} 41...
Kf5 {[%clk 0:00:05.7]} 42. Re1 {[%clk 0:00:33.3]} 42... Kf6 {[%clk 0:00:06.6]}
43. Rf8+ {[%clk 0:00:33.5]} 43... Kg7 {[%clk 0:00:07.1]} 44. Rf2 {[%clk
0:00:34.3]} 44... Kg8 {[%clk 0:00:07.3]} 45. Rg1+ {[%clk 0:00:35.2]} 45... Kh8
{[%clk 0:00:08.1]} 46. Rh2# {[%clk 0:00:35.9]} 1-0

[Event "Early-Titled-Tuesday-Blitz-March-05-2024"]
[Site "Chess.com"]
[Date "2024.03.05"]
[Round "2"]
[White "Seochesspie"]
[Black "dosto07"]
[Result "1-0"]
[WhiteElo "2833"]
[BlackElo "2556"]
[TimeControl "180+1"]
[EndTime "8:18:16 PST"]
[Termination "Seochesspie won on time"]

1. e4 {[%clk 0:02:56.9]} 1... e5 {[%clk 0:02:59.8]} 2. Nf3 {[%clk 0:02:57.1]}
2... Nc6 {[%clk 0:03:00.3]} 3. Bb5 {[%clk 0:02:57.7]} 3... a6 {[%clk 0:03:00.6]}
4. Ba4 {[%clk 0:02:58.3]} 4... Nf6 {[%clk 0:03:01.1]} 5. d3 {[%clk 0:02:58.5]}
5... d6 {[%clk 0:03:00.8]} 6. c3 {[%clk 0:02:58.2]} 6... g6 {[%clk 0:03:01.2]}
7. Nbd2 {[%clk 0:02:58.1]} 7... Bg7 {[%clk 0:03:01.8]} 8. O-O {[%clk 0:02:58.5]}
8... O-O {[%clk 0:03:02.3]} 9. Re1 {[%clk 0:02:59]} 9... Bd7 {[%clk 0:03:02.5]}
10. Nf1 {[%clk 0:02:58.8]} 10... Qe8 {[%clk 0:03:02.9]} 11. Ng3 {[%clk 0:02:58]}
11... Nd4 {[%clk 0:02:45.6]} 12. cxd4 {[%clk 0:02:57.2]} 12... Bxa4 {[%clk
0:02:45.6]} 13. b3 {[%clk 0:02:57]} 13... Bd7 {[%clk 0:02:28.3]} 14. dxe5 {[%clk
0:02:56.7]} 14... Ng4 {[%clk 0:02:22.7]} 15. d4 {[%clk 0:02:56.4]} 15... dxe5
{[%clk 0:02:19.5]} 16. Ba3 {[%clk 0:02:49.4]} 16... exd4 {[%clk 0:02:16.8]} 17.
Bxf8 {[%clk 0:02:43.2]} 17... Qxf8 {[%clk 0:02:16.5]} 18. h3 {[%clk 0:02:32.1]}
18... Ne5 {[%clk 0:02:15.5]} 19. Nxd4 {[%clk 0:02:28]} 19... Rd8 {[%clk
0:02:08.6]} 20. Qe2 {[%clk 0:02:24.8]} 20... Bxh3 {[%clk 0:02:02.1]} 21. gxh3
{[%clk 0:02:24.7]} 21... Rxd4 {[%clk 0:02:01.9]} 22. Rad1 {[%clk 0:02:25.6]}
22... c5 {[%clk 0:01:43.6]} 23. Kg2 {[%clk 0:02:22.6]} 23... Qd6 {[%clk
0:01:40.8]} 24. Rxd4 {[%clk 0:02:13]} 24... cxd4 {[%clk 0:01:40.5]} 25. f4
{[%clk 0:02:13.1]} 25... Nc6 {[%clk 0:01:35.2]} 26. e5 {[%clk 0:02:11.7]} 26...
Qb4 {[%clk 0:01:24.5]} 27. e6 {[%clk 0:02:05.9]} 27... Qe7 {[%clk 0:01:02.5]}
28. exf7+ {[%clk 0:01:58]} 28... Qxf7 {[%clk 0:01:02.4]} 29. Qe8+ {[%clk
0:01:56.1]} 29... Qxe8 {[%clk 0:01:02.6]} 30. Rxe8+ {[%clk 0:01:56.6]} 30... Kf7
{[%clk 0:01:03.1]} 31. Re1 {[%clk 0:01:55.3]} 31... Nb4 {[%clk 0:00:57.6]} 32.
Ne4 {[%clk 0:01:50.7]} 32... Nc2 {[%clk 0:00:34.8]} 33. Re2 {[%clk 0:01:33.8]}
33... Ne3+ {[%clk 0:00:20.7]} 34. Kf3 {[%clk 0:01:32.3]} 34... h6 {[%clk
0:00:17.7]} 35. Nd6+ {[%clk 0:01:30.4]} 35... Ke6 {[%clk 0:00:17.7]} 36. Nxb7
{[%clk 0:01:29]} 36... Kd5 {[%clk 0:00:17.7]} 37. Na5 {[%clk 0:01:25.3]} 37...
Bf8 {[%clk 0:00:15.4]} 38. Nc4 {[%clk 0:01:02]} 38... Nxc4 {[%clk 0:00:11.6]}
39. bxc4+ {[%clk 0:01:02.9]} 39... Kxc4 {[%clk 0:00:12.3]} 40. Re6 {[%clk
0:01:02.9]} 40... Bb4 {[%clk 0:00:09.4]} 41. Rxg6 {[%clk 0:01:01.2]} 41... d3
{[%clk 0:00:09.8]} 42. Rc6+ {[%clk 0:00:59.2]} 42... Bc5 {[%clk 0:00:06.9]} 43.
f5 {[%clk 0:00:57.5]} 43... Kd5 {[%clk 0:00:05.7]} 44. Rc8 {[%clk 0:00:56]}
44... Bd4 {[%clk 0:00:03.6]} 45. Rd8+ {[%clk 0:00:53.6]} 45... Ke5 {[%clk
0:00:02.9]} 46. f6 {[%clk 0:00:41.9]} 1-0

[Event "Early-Titled-Tuesday-Blitz-March-05-2024"]
[Site "Chess.com"]
[Date "2024.03.05"]
[Round "2"]
[White "thesupera12"]
[Black "Rodalquilar"]
[Result "0-1"]
[WhiteElo "2467"]
[BlackElo "2802"]
[TimeControl "180+1"]
[EndTime "8:18:20 PST"]
[Termination "Rodalquilar won by resignation"]

1. d4 {[%clk 0:02:58.5]} 1... d5 {[%clk 0:03:00.3]} 2. Bg5 {[%clk 0:02:54.8]}
2... h6 {[%clk 0:02:54.1]} 3. Bh4 {[%clk 0:02:54.1]} 3... c6 {[%clk 0:02:54.6]}
4. e3 {[%clk 0:02:53.8]} 4... Qb6 {[%clk 0:02:53.4]} 5. Qc1 {[%clk 0:02:53.5]}
5... e5 {[%clk 0:02:53]} 6. Nf3 {[%clk 0:02:53.6]} 6... Nd7 {[%clk 0:02:49.5]}
7. c4 {[%clk 0:02:48.8]} 7... exd4 {[%clk 0:02:36.9]} 8. Nxd4 {[%clk 0:02:45.6]}
8... Ngf6 {[%clk 0:02:32.8]} 9. Nc3 {[%clk 0:02:41.7]} 9... Qa5 {[%clk
0:02:18.6]} 10. a3 {[%clk 0:02:24.4]} 10... c5 {[%clk 0:02:04.1]} 11. Nb5 {[%clk
0:01:45.8]} 11... a6 {[%clk 0:02:01.7]} 12. b4 {[%clk 0:01:44.4]} 12... Qd8
{[%clk 0:01:57.9]} 13. Bg3 {[%clk 0:01:29.5]} 13... axb5 {[%clk 0:01:57.2]} 14.
Nxb5 {[%clk 0:01:30.4]} 14... Ra6 {[%clk 0:01:30]} 15. Nc7+ {[%clk 0:01:23.8]}
15... Ke7 {[%clk 0:01:30.3]} 16. Nxa6 {[%clk 0:01:21.7]} 16... bxa6 {[%clk
0:01:30.4]} 17. cxd5 {[%clk 0:01:20.1]} 17... Nxd5 {[%clk 0:01:26.4]} 18. bxc5
{[%clk 0:01:16.4]} 18... Qa5+ {[%clk 0:01:25.8]} 19. Qd2 {[%clk 0:01:16.7]}
19... Qxd2+ {[%clk 0:01:24.9]} 20. Kxd2 {[%clk 0:01:17.4]} 20... Nxc5 {[%clk
0:01:25.5]} 21. Bc4 {[%clk 0:01:13.8]} 21... Ne4+ {[%clk 0:01:22.2]} 22. Ke1
{[%clk 0:01:11.8]} 22... Nb6 {[%clk 0:01:11.4]} 23. Bd3 {[%clk 0:01:04.9]} 23...
Bf5 {[%clk 0:01:10.8]} 24. Rb1 {[%clk 0:00:55.8]} 24... Nd7 {[%clk 0:01:06.6]}
25. Ke2 {[%clk 0:00:38.5]} 25... Nc3+ {[%clk 0:01:01.7]} 26. Kd2 {[%clk
0:00:34.9]} 26... Nxb1+ {[%clk 0:01:01.8]} 27. Bxb1 {[%clk 0:00:33.7]} 27...
Bxb1 {[%clk 0:00:55.1]} 28. Rxb1 {[%clk 0:00:34.6]} 28... Ke6 {[%clk 0:00:55.7]}
29. a4 {[%clk 0:00:26.1]} 29... a5 {[%clk 0:00:53.7]} 30. e4 {[%clk 0:00:22.9]}
30... Bb4+ {[%clk 0:00:53.6]} 31. Ke2 {[%clk 0:00:23.1]} 31... Rc8 {[%clk
0:00:54.5]} 32. Rb2 {[%clk 0:00:22.7]} 32... g5 {[%clk 0:00:51.8]} 33. h4 {[%clk
0:00:17.6]} 33... Rc3 {[%clk 0:00:48.2]} 34. hxg5 {[%clk 0:00:17.6]} 34... hxg5
{[%clk 0:00:48.4]} 35. Ra2 {[%clk 0:00:17.1]} 35... Nf6 {[%clk 0:00:43]} 36. f3
{[%clk 0:00:16.9]} 36... Nxe4 {[%clk 0:00:43.4]} 37. Be1 {[%clk 0:00:15.9]}
37... Rc4 {[%clk 0:00:30.5]} 38. fxe4 {[%clk 0:00:15.1]} 38... Rxe4+ {[%clk
0:00:30.6]} 39. Kf3 {[%clk 0:00:13]} 39... Rxe1 {[%clk 0:00:30.8]} 40. Rc2
{[%clk 0:00:13.6]} 40... f5 {[%clk 0:00:29.6]} 41. Rc6+ {[%clk 0:00:13.9]} 41...
Kd5 {[%clk 0:00:29.9]} 42. Rf6 {[%clk 0:00:13.5]} 42... Ke5 {[%clk 0:00:29]} 43.
Rb6 {[%clk 0:00:13.2]} 43... g4+ {[%clk 0:00:29.3]} 44. Kf2 {[%clk 0:00:13.7]}
44... Bc5+ {[%clk 0:00:29.2]} 45. Kxe1 {[%clk 0:00:13.2]} 45... Bxb6 {[%clk
0:00:29.6]} 46. g3 {[%clk 0:00:14.1]} 0-1

[Event "Early-Titled-Tuesday-Blitz-March-05-2024"]
[Site "Chess.com"]
[Date "2024.03.05"]
[Round "2"]
[White "the_blue_pill"]
[Black "AldokhinIvan"]
[Result "0-1"]
[WhiteElo "2355"]
[BlackElo "2672"]
[TimeControl "180+1"]
[EndTime "8:18:22 PST"]
[Termination "AldokhinIvan won on time"]

1. e4 {[%clk 0:03:00.9]} 1... c5 {[%clk 0:02:59.8]} 2. Nf3 {[%clk 0:03:00.5]}
2... e6 {[%clk 0:02:59.4]} 3. g3 {[%clk 0:02:56.9]} 3... b6 {[%clk 0:02:58.8]}
4. d4 {[%clk 0:02:51]} 4... cxd4 {[%clk 0:02:58]} 5. Nxd4 {[%clk 0:02:51.1]}
5... Bb7 {[%clk 0:02:58.5]} 6. Bg2 {[%clk 0:02:51.5]} 6... Nc6 {[%clk
0:02:52.2]} 7. O-O {[%clk 0:02:46.3]} 7... Bc5 {[%clk 0:02:40.2]} 8. Nxc6 {[%clk
0:02:35.4]} 8... Bxc6 {[%clk 0:02:39.3]} 9. Nc3 {[%clk 0:02:12.4]} 9... Ne7
{[%clk 0:02:38.6]} 10. Bf4 {[%clk 0:02:00.3]} 10... O-O {[%clk 0:02:31.9]} 11.
Bd6 {[%clk 0:01:57.1]} 11... Bxd6 {[%clk 0:02:19.5]} 12. Qxd6 {[%clk 0:01:56.5]}
12... f5 {[%clk 0:02:17.6]} 13. Rad1 {[%clk 0:01:50.1]} 13... f4 {[%clk
0:02:10.3]} 14. gxf4 {[%clk 0:01:12.1]} 14... Ng6 {[%clk 0:01:35.8]} 15. f5
{[%clk 0:01:06.6]} 15... exf5 {[%clk 0:01:20.2]} 16. exf5 {[%clk 0:01:05.4]}
16... Qg5 {[%clk 0:01:03.8]} 17. Qg3 {[%clk 0:00:56]} 17... Qxf5 {[%clk
0:01:03.2]} 18. Nd5 {[%clk 0:00:34.2]} 18... Rae8 {[%clk 0:01:02.2]} 19. c4
{[%clk 0:00:30]} 19... Kh8 {[%clk 0:00:51.6]} 20. Rfe1 {[%clk 0:00:20.7]} 20...
Bxd5 {[%clk 0:00:46.6]} 21. cxd5 {[%clk 0:00:19.4]} 21... Nf4 {[%clk 0:00:44]}
22. Rxe8 {[%clk 0:00:18]} 22... Rxe8 {[%clk 0:00:43.4]} 23. Qf3 {[%clk
0:00:11.2]} 23... Qe5 {[%clk 0:00:33]} 24. h4 {[%clk 0:00:09.1]} 24... Rf8
{[%clk 0:00:30.8]} 25. Qg4 {[%clk 0:00:06.2]} 25... h5 {[%clk 0:00:15.7]} 26.
Qg5 {[%clk 0:00:05.4]} 26... Rf5 {[%clk 0:00:09.2]} 27. Qd8+ {[%clk 0:00:04.8]}
27... Kh7 {[%clk 0:00:09]} 28. Bf3 {[%clk 0:00:05]} 28... Ne2+ {[%clk
0:00:05.7]} 29. Bxe2 {[%clk 0:00:01]} 29... Qxe2 {[%clk 0:00:06.6]} 0-1